Cogmind - Beta 11.1 @@@ ROGUE MODE // 2022.05.12 @ 02:52:07 // Winter2019/RPGLIKE Player: Infomantis Result: Destroyed by X-62 Marksman with Pulse Rifle Performance ------------- Evolutions (2) 1000 Regions Visited (5) 1000 Robots Destroyed (46) 230 Value Destroyed (1190) 1190 Prototype IDs (20) 400 Alien Tech Used (0) 0 Bonus (0) 0 TOTAL SCORE: 3820 Bonus ------- None Cogmind --------- Core Integrity 0/900 Matter 172/300 Energy 191/210 System Corruption 0% Temperature Hot (248) Movement Walking (120) Location -8/Materials Parts ------- > --- POWER (1) -------- Light Nuclear Core > --- PROPULSION (2) --- Aluminum Leg Aluminum Leg > --- UTILITY (4) ------ Improved Terrain Scanner Seismic Detector Energy Filter Hacking Suite > --- WEAPON (3) ------- Lightning Gun Datajack > --- INVENTORY (4) ---- Protomatter-17 Advanced EMP Blaster Advanced EMP Blaster Rocket Launcher Peak State ------------ > --- POWER ------------ Light Nuclear Core > --- PROPULSION ------- Aluminum Leg Aerolev Unit > --- UTILITY ---------- Improved Terrain Scanner Seismic Detector Energy Filter Hacking Suite > --- WEAPON ----------- Shock Rifle Lightning Gun Rocket Launcher > --- INVENTORY -------- Protomatter Advanced EMP Blaster Advanced EMP Blaster Datajack [Rating: 29] Favorites ----------- Power Light Ion Engine Engine Light Ion Engine Power Core Light Nuclear Core Propulsion Aluminum Leg Leg Aluminum Leg Wheel Compact Wheel Hover Unit Aerolev Unit Utility Seismic Detector Device Seismic Detector Hackware Hacking Suite Weapon Assault Rifle Energy Gun Medium Laser Ballistic Gun Assault Rifle Launcher Rocket Launcher Special Melee Weapon Datajack Build | -11 -10 -10 -10 -9 -8 ------- Run | Scr Mat Min Exi Min Mat Slots Evolved 6 | 3 1 . . . 2 Power . | . . . . . . Propulsion 1 | 1 . . . . . Utility 3 | 1 1 . . . 1 Weapon 2 | 1 . . . . 1 Parts Attached 43 | 8 10 5 1 11 8 Power 4 | 1 1 1 . 1 . Engine 3 | 1 1 1 . . . Core 1 | . . . . 1 . Reactor . | . . . . . . Propulsion 10 | 2 2 . . 4 2 Treads . | . . . . . . Leg 7 | 2 2 . . 2 1 Wheel 2 | . . . . 2 . Hover 1 | . . . . . 1 Flight . | . . . . . . Utility 8 | 2 2 2 . 1 1 Device 7 | 2 2 2 . 1 . Storage . | . . . . . . Processor . | . . . . . . Hackware 1 | . . . . . 1 Protection . | . . . . . . Artifact . | . . . . . . Weapon 21 | 3 5 2 1 5 5 Energy Gun 6 | 1 1 . . 3 1 Energy Cannon . | . . . . . . Ballistic Gun 6 | 2 2 1 . . 1 Ballistic Cannon . | . . . . . . Launcher 7 | . 2 1 . 2 2 Special Weapon . | . . . . . . Impact Weapon . | . . . . . . Slashing Weapon . | . . . . . . Piercing Weapon . | . . . . . . Special Melee Weapon 2 | . . . 1 . 1 Unidentified Prototypes 3 | . . 1 . . 2 Parts Lost 1 | . . . . . 1 Power . | . . . . . . Propulsion . | . . . . . . Utility . | . . . . . . Weapon 1 | . . . . . 1 Highest Loss Streak 1 | . . . . . 1 To Critical Strikes . | . . . . . . Average Slot Usage (%) 99 | . 97 100 100 100 98 Engine 8 | . 13 12 12 . . Core 3 | . . . . 11 10 Leg 25 | . 27 25 25 24 19 Device 34 | . 27 37 37 37 30 Energy Gun 11 | . 13 12 1 12 19 Ballistic Gun 10 | . 13 10 12 8 . Launcher 2 | . . 1 . 3 9 Special Melee Weapon 1 | . . . 10 . 1 Naked Turns . | . . . . . . Heaviest Build 23 | 8 12 13 10 18 23 Greatest Support 32 | 20 20 20 20 32 25 Greatest Overweight (x) 2 | . . . . 1 2 Average Overweight (x) . | . . . . . . Largest Inventory Capacity 4 | 3 3 3 3 3 4 Average Capacity 3 | 3 3 3 3 3 3 Most Carried 4 | 3 3 3 3 3 4 Average Carried 3 | 2 2 3 3 2 3 Final Capacity 4 | 3 3 3 3 3 4 Final Carried 4 | 3 3 3 3 3 4 Class Distribution -------------------- 72% | Scavenger-Mutant 23% | Mutant 3% | Scavenger-Skirmisher Dominant Class ---------------- Mutant | -10/Materials Scavenger-Mutant | -10/Mines Scavenger-Mutant | -10/Exiles Scavenger-Mutant | -9/Mines Scavenger-Mutant | -8/Materials Resources | -11 -10 -10 -10 -9 -8 ----------- Run | Scr Mat Min Exi Min Mat Matter Collected 1014 | 294 253 197 . 215 55 Remotely . | . . . . . . Salvage Created 1519 | 117 654 210 . 230 308 Parts 81 | 10 34 7 . 14 16 Haulers Intercepted 1 | . . . . . 1 Recyclers Shooed 4 | . 2 1 . . 1 Parts Field Recycled . | . . . . . . Retrieved Matter . | . . . . . . Parts Self-Destructed . | . . . . . . Prevented . | . . . . . . Kills | -11 -10 -10 -10 -9 -8 ------- Run | Scr Mat Min Exi Min Mat Combat Hostiles Destroyed 25 | . 12 . . 8 5 Guns 16 | . 10 . . 3 3 AOE 7 | . 1 . . 5 1 Classes Destroyed 10 | 2 4 . . 1 3 Worker 4 | . 1 2 . 1 . Tunneler 4 | 4 . . . . . Hauler 1 | . . . . . 1 Recycler 8 | 1 2 2 . 1 2 Operator 1 | . 1 . . . . Watcher 3 | . 3 . . . . Swarmer 3 | . . . . 3 . Grunt 20 | . 12 . . 5 3 Specialist 1 | . . . . . 1 Hunter 1 | . . . . . 1 Best Kill Streak 5 | 5 4 2 . 4 4 Combat Bots Only 3 | . 2 . . 3 3 Max Kills in Single Turn 2 | 2 1 1 . 2 2 Gunslinging . | . . . . . . Exploded 2 | . 1 . . 2 1 Melee . | . . . . . . Uniques/NPCs Destroyed . | . . . . . . Combat | -11 -10 -10 -10 -9 -8 -------- Run | Scr Mat Min Exi Min Mat Damage Taken 1957 | . 513 . . 203 1241 Core 1591 | . 418 . . 168 1005 Absorbed by Shields . | . . . . . . Redirected to Core 1258 | . 309 . . 114 835 Core Remaining (%) 99 | 100 . . . 99 . Volleys Fired 146 | 8 70 20 . 26 22 Largest 2 | 2 2 2 . 2 2 Hottest 105 | 60 80 70 . 85 105 Shots Fired 265 | 16 135 39 . 38 37 Gun 254 | 16 132 38 . 31 37 Cannon . | . . . . . . Launcher 11 | . 3 1 . 7 . Special . | . . . . . . Kinetic 106 | 8 67 19 . 12 . Thermal 104 | 8 65 19 . 12 . Explosive 11 | . 3 1 . 7 . Electromagnetic 44 | . . . . 7 37 Robot Hit Streak 15 | 7 10 3 . 6 15 Robot Miss Streak 5 | 1 4 3 . 5 2 Penetration Max . | . . . . . . Secondary Targets 2 | . 1 . . . 1 Max Gunslinging Chain 1 | . 1 . . . 1 Shots Hit Robots 163 | 11 73 11 20 15 33 Core Hits 79 | 5 37 6 . 15 16 Critical Kills 1 | . 1 . . . . Critical Parts Destroyed . | . . . . . . Critical Strikes 4 | . 2 . . 2 . Burn 3 | . 1 . . 2 . Destroy 1 | . 1 . . . . Melee Attacks 21 | . . . 20 . 1 Impact . | . . . . . . Slashing . | . . . . . . Piercing . | . . . . . . Sneak Attacks 21 | . . . 20 . 1 Combat Hostiles . | . . . . . . Follow-up Attacks . | . . . . . . Damage Inflicted 2794 | 154 1001 146 . 639 854 Guns 1994 | 154 924 137 . 205 574 Cannons . | . . . . . . Explosions 713 | . 77 . . 386 250 Melee . | . . . . . . Ramming 87 | . . 9 . 48 30 Kinetic 716 | 75 467 74 . 100 . Thermal 954 | 79 457 63 . 105 250 Explosive 463 | . 77 . . 386 . Electromagnetic 574 | . . . . . 574 Impact . | . . . . . . Slashing . | . . . . . . Piercing . | . . . . . . Highest Corruption . | . . . . . . Average Corruption . | . . . . . . Corruption Purged . | . . . . . . Corruption Blocked . | . . . . . . Overload Shots . | . . . . . . Overflow Damage . | . . . . . . Projectiles . | . . . . . . Explosions . | . . . . . . Melee . | . . . . . . Knockbacks . | . . . . . . Impact . | . . . . . . Kinetic . | . . . . . . Secondary . | . . . . . . Self-Inflicted Damage 45 | . . 1 . 19 25 Shots 3 | . . 1 . 1 1 Rammed . | . . . . . . Targets Rammed 20 | . . 3 . 8 9 Kicked 20 | . . 3 . 8 9 Crushed . | . . . . . . Highest Temperature 419 | . 189 36 . 90 419 Average Temperature 73 | . 44 13 . 36 203 Received Heat Transfer 678 | . 363 . . 90 225 Effects 9 | . . . . . 9 Shutdowns 2 | . . . . . 2 Interference 5 | . . . . . 5 Matter Decay 2 | . . . . . 2 Siege Activations . | . . . . . . Robots Corrupted 1 | . . . . . 1 Combat Hostiles 1 | . . . . . 1 Parts Fried 2 | . . . . . 2 Impact Corruptions . | . . . . . . Robots Melted 1 | . 1 . . . . Combat Hostiles 1 | . 1 . . . . Parts Melted 2 | . 1 . . 1 . Heat Transferred 2441 | 175 1324 185 . 407 350 Parts Sabotaged . | . . . . . . Parts Stolen . | . . . . . . Parts Stripped . | . . . . . . Power Chain Reactions 2 | . . . . . 2 Missiles Intercepted . | . . . . . . Alert | -11 -10 -10 -10 -9 -8 ------- Run | Scr Mat Min Exi Min Mat Peak Influence 269 | 25 269 100 . 170 224 Initial 36 | . 16 36 . . 6 Average 69 | 11 95 42 . 83 54 Maximum Alert Level 1 | . 1 . . . 1 Low Security (%) 97 | 100 93 100 . 100 96 Level 1 2 | . 6 . . . 3 Level 2 . | . . . . . . Level 3 . | . . . . . . Level 4 . | . . . . . . Level 5 . | . . . . . . High Security . | . . . . . . Max Security . | . . . . . . Squads Dispatched 7 | . 4 . . . 3 Investigation 3 | . 2 . . . 1 Extermination . | . . . . . . Reinforcement 4 | . 2 . . . 2 Assault . | . . . . . . Garrison . | . . . . . . Intercept . | . . . . . . Searches Triggered . | . . . . . . Construction Impeded . | . . . . . . Haulers Reinforced . | . . . . . . Active Scanning Responses . | . . . . . . Cargo Convoy Interrupts . | . . . . . . Stealth | -11 -10 -10 -10 -9 -8 --------- Run | Scr Mat Min Exi Min Mat Distress Signals 5 | . 1 . . . 4 Communications Jammed . | . . . . . . Distress Signals . | . . . . . . Times Spotted 45 | . 18 . . 7 20 Peak Tracking Total 8 | . 2 . . 3 8 Tactical Retreats 2 | . . . . . 2 Traps | -11 -10 -10 -10 -9 -8 ------- Run | Scr Mat Min Exi Min Mat Traps Triggered 1 | . 1 . . . . Indirectly . | . . . . . . Trap Hack Attempts . | . . . . . . Triggered . | . . . . . . Disarmed . | . . . . . . Reprogrammed . | . . . . . . Reused . | . . . . . . Traps Extracted . | . . . . . . Installed . | . . . . . . Triggered . | . . . . . . Machines | -11 -10 -10 -10 -9 -8 ---------- Run | Scr Mat Min Exi Min Mat Machines Disabled 11 | . 5 4 . 2 . Max in Single Turn 1 | . 1 1 . 1 . Machines Sabotaged . | . . . . . . Garrisons Compromised . | . . . . . . Overloaded Fab Kills . | . . . . . . Hacking | -11 -10 -10 -10 -9 -8 --------- Run | Scr Mat Min Exi Min Mat Machines Accessed 17 | . 7 1 1 1 7 Terminals 13 | . 7 . . . 6 Fabricators . | . . . . . . Repair Stations 1 | . . . . . 1 Recycling Units . | . . . . . . Scanalyzers . | . . . . . . Garrison Access . | . . . . . . Total Hacks 41 | . 19 1 1 1 19 Successful 22 | . 10 1 1 1 9 Failed 19 | . 9 . . . 10 Catastrophic 2 | . 1 . . . 1 Database Lockouts . | . . . . . . Manual 9 | . 2 . . . 7 Terminals 37 | . 19 . . . 18 Fabricators . | . . . . . . Repair Stations 1 | . . . . . 1 Recycling Units . | . . . . . . Scanalyzers . | . . . . . . Garrison Access . | . . . . . . Terminal Hacks 17 | . 9 1 1 1 5 Record 1 | . . . 1 . . Prototype ID Bank 3 | . 2 . . . 1 Open Door 2 | . . 1 . 1 . Branch Access Points 1 | . 1 . . . . Terminal Index 2 | . 1 . . . 1 Recycling Unit Index 1 | . 1 . . . . Unreport Threat 2 | . 1 . . . 1 Locate Traps 1 | . 1 . . . . Hauler Manifests 1 | . 1 . . . . Registered Components 1 | . . . . . 1 Zone Layout 2 | . 1 . . . 1 Fabricator Hacks . | . . . . . . Repair Station Hacks . | . . . . . . Recycling Unit Hacks . | . . . . . . Scanalyzer . | . . . . . . Garrison Access Hacks . | . . . . . . Unauthorized Hacks 5 | . 1 . . . 4 Terminals 4 | . 1 . . . 3 Assimilate 1 | . . . . . 1 Botnet 2 | . 1 . . . 1 Operators 1 | . . . . . 1 Fabricators . | . . . . . . Repair Stations 1 | . . . . . 1 Mechanics 1 | . . . . . 1 Recycling Units . | . . . . . . Scanalyzers . | . . . . . . Garrison Access . | . . . . . . Data Cores Recovered 1 | . . . . . 1 Used 1 | . . . . . 1 Hacking Detections 9 | . 5 . . . 4 Full Trace Events 3 | . 2 . . . 1 Feedback Events . | . . . . . . Feedback Blocked . | . . . . . . Robot Schematics Acquired . | . . . . . . Robots Built . | . . . . . . Authchips . | . . . . . . Time . | . . . . . . Total Robot Build Rating . | . . . . . . Part Schematics Acquired . | . . . . . . Parts Built . | . . . . . . Authchips . | . . . . . . Time . | . . . . . . Total Part Build Rating . | . . . . . . Parts Repaired . | . . . . . . Time . | . . . . . . Parts Recycled . | . . . . . . Recycled Matter . | . . . . . . Retrieved Matter . | . . . . . . Retrieved Components . | . . . . . . Parts Scanalyzed . | . . . . . . Part Schematics Acquired . | . . . . . . Parts Damaged . | . . . . . . Bothacking | -11 -10 -10 -10 -9 -8 ------------ Run | Scr Mat Min Exi Min Mat Used RIF Installer . | . . . . . . Robots Hacked 3 | . . . 3 . . Non-combat 2 | . . . 2 . . Combat 1 | . . . 1 . . Robot Hacks Applied 20 | . . . 20 . . parse_system 20 | . . . 20 . . Relay Couplers Released . | . . . . . . Fabnet Peak Effective % . | . . . . . . Robots Rewired . | . . . . . . Allies Hacked . | . . . . . . Hacks Repelled . | . . . . . . Allies | -11 -10 -10 -10 -9 -8 -------- Run | Scr Mat Min Exi Min Mat Total Allies 1 | . . 1 . . . Largest Group 1 | . . 1 . . . Highest-Rated Group 31 | . . 31 . . . Highest-Rated Ally 31 | . . 31 . . . Total Orders . | . . . . . . Ally Attacks . | . . . . . . Total Damage . | . . . . . . Kills . | . . . . . . Allies Corrupted . | . . . . . . Allies Melted . | . . . . . . Intel | -11 -10 -10 -10 -9 -8 ------- Run | Scr Mat Min Exi Min Mat Robot Analysis Total . | . . . . . . Derelict Logs Recovered 1 | . . 1 . . . Drone Launches . | . . . . . . Drone Recoveries . | . . . . . . Exploration | -11 -10 -10 -10 -9 -8 ------------- Run | Scr Mat Min Exi Min Mat Turns Passed 4054 | 109 976 959 666 964 380 Spaces Moved 2745 | 63 550 725 529 671 207 Core 7 | 5 . . . . 2 Treads . | . . . . . . Legs 2735 | 58 550 725 529 668 205 Wheels 3 | . . . . 3 . Hover . | . . . . . . Flight . | . . . . . . Fastest Speed 50 | 50 120 120 120 100 120 Average Speed 120 | 114 120 120 120 120 132 Slowest Speed 190 | 120 120 120 120 190 190 Overloaded Moves . | . . . . . . Propulsion Burnouts . | . . . . . . Robots Hopped . | . . . . . . Cave-ins Triggered . | . . . . . . Exploration Rate (%) 68 | 4 93 99 93 96 25 Regions Visited 5 Branch Regions 3 Pre-discovered Areas 2 | . . . 1 1 . Known Exits Taken 1 | . 1 . . . . Unknown Exits Taken 4 | 1 . 1 1 1 . Scrap Searched 2 | . . 1 . 1 . Spaces Dug 6 | . . . . 6 . Terrain Destroyed 72 | . 9 10 . 43 10 Melee . | . . . . . . Projectile . | . . . . . . AOE 72 | . 9 10 . 43 10 Terrain Rammed . | . . . . . . Walls Destroyed . | . . . . . . Machines Disabled . | . . . . . . Actions | -11 -10 -10 -10 -9 -8 --------- Run | Scr Mat Min Exi Min Mat Total 3201 | 80 735 774 549 791 272 Wait 145 | . 66 19 . 48 12 Move 2740 | 62 549 724 528 670 207 Hop . | . . . . . . Pick Up 16 | 2 8 . . 3 3 Fast Attach 22 | 7 2 2 . 6 5 Attach 1 | . . . . . 1 Detach 1 | . . . . . 1 Swap 20 | 1 8 3 1 5 2 Drop 30 | . 12 3 . 10 5 Fire 146 | 8 70 20 . 26 22 Melee 21 | . . . 20 . 1 Ram . | . . . . . . Kick 20 | . . 3 . 8 9 Crush . | . . . . . . Escape Stasis . | . . . . . . Rewire . | . . . . . . Trap . | . . . . . . Miscellaneous 39 | . 20 . . 15 4 Route ------- -11/Scrapyard -10/Materials (discovered 4 exits: *Mat x3 / *Min) -10/Mines (discovered 3 exits: *Mat x2 / *Exi) -10/Exiles (discovered 2 exits: *Min x2) -9/Mines (discovered 2 exits: *Mat x2) -8/Materials History --------- Turn | Location | Event 1 | -11/Scrapyard | Upgraded with Propulsion slot (x1) 1 | -11/Scrapyard | Upgraded with Utility slot (x1) 1 | -11/Scrapyard | Upgraded with Weapon slot (x1) 3 | -11/Scrapyard | Discovered new exit (range 15) 110 | -11/Scrapyard | Entered Materials 309 | -10/Materials | Build established: Mutant 542 | -10/Materials | Discovered new exit (range 9) 635 | -10/Materials | Discovered new exit (range 15) 767 | -10/Materials | Identified exit to Mines 851 | -10/Materials | Reached level 2 854 | -10/Materials | Upgraded with Utility slot (x1) 968 | -10/Materials | Discovered new exit (range 15) 1086 | -10/Materials | Entered Mines 1102 | -10/Mines | Received a Mining Laser from a helpful Derelict 1276 | -10/Mines | Build established: Scavenger-Mutant 1353 | -10/Mines | Found a hidden stash of uninstalled traps 1357 | -10/Mines | Identified exit to Materials 1662 | -10/Mines | Discovered exit to Materials (range 9) 1924 | -10/Mines | Found the Drone Emporium 1932 | -10/Mines | Found Prototype Device 1932 | -10/Mines | Identified Splice Drone Bay 2039 | -10/Mines | Deemed a non-threat by the Exiles lab entrance 2039 | -10/Mines | Discovered new exit (range 5) 2045 | -10/Mines | Entered Exiles 2047 | -10/Exiles | Reached level 3 2063 | -10/Exiles | Discovered new exit (range 15) 2091 | -10/Exiles | Met 8R-AWN 2119 | -10/Exiles | Met EX-HEX 2153 | -10/Exiles | Met EX-BIN 2303 | -10/Exiles | Met EX-DEC 2341 | -10/Exiles | Visited The Gauntlet 2534 | -10/Exiles | Learned location of Zion (-6) 2690 | -10/Exiles | Discovered new exit (range 15) 2711 | -10/Exiles | Entered Mines 2943 | -9/Mines | Met a Derelict who couldn't figure out how to use a Trap Extractor 3028 | -9/Mines | Discovered new exit (range 13) 3044 | -9/Mines | Received a Rocket Launcher from a helpful Derelict 3064 | -9/Mines | Learned location of Storage (-7) 3239 | -9/Mines | Discovered new exit (range 16) 3416 | -9/Mines | Reached level 4 3675 | -9/Mines | Entered Materials 3677 | -8/Materials | Reached level 5 3677 | -8/Materials | Upgraded with Weapon slot (x1) 3710 | -8/Materials | Upgraded with Utility slot (x1) 4022 | -8/Materials | Core integrity fell below 50% 4034 | -8/Materials | Core integrity fell below 20% 4055 | -8/Materials | Destroyed by X-62 Marksman with Pulse Rifle Last Messages --------------- 04028_ K-01 Serf collects debris. 04028_ Sneak attack on K-01 Serf. 04028_ Jacked K-01 Serf... 04030_ Overheating: System interference. 04030_ Seismic Detector temporarily disabled. 04030_ Shock Rifle temporarily disabled. 04030_ Kicked H-61 Shepherd. 04030_ Penetrated by Slug. 04031_ K-01 Serf collects debris. 04033_ Slug penetrates X-62 Marksman. 04033_ Knocked back. 04033_ Penetrated by Slug. 04036_ Knocked back. 04042_ X-62 Marksman destroyed. 04049_ Penetrated by Slug. 04052_ W-25 Informer sends out distress signal. 04052_ Penetrated by Slug. 04054_ R-06 Scavenger collects Wheel. 04055_ Penetrated by Slug. 04055_ Shock Rifle destroyed. Map ----- +----------------------------------------------------+ | ?????????????????????????????????????????????????? | | ?????????????????????????????????????????????????? | | ?????????????????????????????????????????????????? | | ?????????????????????????????????????????????????? | | ?????????????????????????????????????????????????? | | ?????????????????????????????????????????????????? | | ?????????????????????????????????????????????????? | | ??????????????????###?#? ??????????????????????? | | ?????????????########### #?????????????????????? | | ???????????############# b #?##??????????????????? | | ?????????############### #####?#???????????????? | | ???????##########?###### g##?##?????????????????? | | ??????????##?########### #########?????????????? | | ?????################### #######???????????????? | | ?????#?################# g ##########????????????? | | ?????#####?############# ##########????????????? | | ??#?##### ######### ##########?#??????????? | | ???? + ######### ###########???????????? | | ???###### ######### #############?????????? | | ???#####? ######### #############?????????? | | ???###### ######### ????????? | | ?? "" # ####%[#*# % % ?????????? | | ???""S ####+#########"#% [% ? ????????? | | ???"" + H %%%%[=!r!##############????????? | | ??? #### ############x############# ????????? | | ?? #### ### %#* !@= ######### ???????? | | ??? #### ### # w #########"""???????? | | ???##+#### # """ # [% ] #########"""???????? | | ???#?? ### # """ # [== #########"""??? ???? | | ???? + """ # == #########"""???????? | | ???? ### # # %= #########""" ? ????? | | ?????##### # # [ ######### ? ???? | | ?????#######+### # ######### ?????? | | ??????### # "# ###########?#??????? | | ??????### """ # T#####a##+##########?#?###???? | | ????????# """ # "#####u## ###############????? | | ????????# """ # ##### ## ############????#??? | | ????????? ########### #####%##############??? | | ??????#?#? # """ """ # # ! #########??????? | | ??????##?####### """ """ #%# "########?## ?? | | ?????????? ##### """ """ #%#=! "#########?# ???? | | ?????#?### # # #!! "##########? ? ?? | | ???##??#?####### #%#! T###########????? | | ??????########## #%# "##############?? | | ???#####?####### # # "############??#? | | ??##??##?#?##### #%# "##############?? | | #?#?###??###?######+######%# #############??? | | ###?#####?#### # "" ###############? | | ?###?######### + """ ############?### | | ?#?######??### # """ ################ | +----------------------------------------------------+ Best States ------------- Heat Dissipation 31 Energy Generation 19 Energy Capacity 250 Matter Stores 300 Matter Capacity 300 Sight Range 17 Terrain Scan Range 16 Terrain Scan Density 510 Evasion (%) 55 Energy Filtering 30 Offensive Hacking 10 Defensive Hacking 5 Item Schematics ----------------- None Robot Schematics ------------------ None Fabricated ------------ Nothing Alien Tech Used ----------------- None Achievements -------------- None Challenges ------------ None RPGLIKE | -11 -10 -10 -10 -9 -8 --------- Run | Scr Mat Min Exi Min Mat Levels Raised 4 | . 1 . 1 1 1 XP Earned 9920 | 3000 2085 800 200 1600 2235 XP Spent 9000 | 3000 1500 . . 1500 3000 Upgrades 28 | 6 4 . . 14 4 Propulsion Slot 1 | 1 . . . . . Utility Slot 3 | 1 1 . . . 1 Weapon Slot 2 | 1 . . . . 1 Core Integrity 6 | . . . . 6 . Heat Dissipation 1 | . . . . 1 . Energy Generation 1 | . . . . 1 . Energy Storage 1 | . . . . 1 . Mass Support 1 | . . . . . 1 Inventory Capacity 4 | 3 . . . . 1 Sight Range 1 | . 1 . . . . Terrain Scan Density 5 | . . . . 5 . Ranged Accuracy 1 | . 1 . . . . Hack Defense % 1 | . 1 . . . . Protomatter Created 465 | . 183 . . 74 208 Integrity Restored 794 | . 418 . . 280 96 Core 678 | . 418 . . 164 96 Parts 116 | . . . . 116 . Protomatter Decayed 40 | . 2 . . . 38 Game ------ Seed SpreadWardroneSuperbattery Manual? 0 Play Time 00:46:58 Cumulative 214.8 hours Start 2022.05.12 @ 01:50:29 End 2022.05.12 @ 02:52:07 Sessions 1 Manual Loads 0 Difficulty Rogue Special Mode Winter2019/RPGLIKE Game No. 155 Rogue 132 Adventurer 6 Explorer 17 Win Type - Total 15 Types 9/0/2/1/0/1/1/1/0 Lore% 92 Gallery% 90 Achievement% 68 Wizard Run 0 Options --------- ASCII 0 Keyboard 0 Movement Numpad Keybinds 0 Fullscreen 1 Font 12/Fuzzy Map View 83x54 Tactical HUD 1 Map Filters NONE Filters NONE Steam 1 RUN: c78fae65-af1e-4ee7-9c8a-9ae34cb18345